bitfinex-derivatives/quotes_SOLF0:USTF0_20250823
["timestamp","ask_amount","ask_price","bid_price","bid_amount"]
[1755930405828,2.7,206.56,206.41,4.69539291]
[1755930406129,2.7,206.56,206.42,4.69539291]
[1755930406329,2.7,206.56,206.43,4.69539291]
[1755930406532,4.844,206.53,206.44,4.69539291]
[1755930406725,7.544,206.53,206.43,4.8463]
[1755930406926,7.544,206.53,206.44,4.6932571]
[1755930407126,0.03347456,206.51,206.45,4.69812214]
[1755930407329,0.03347456,206.51,206.45,4.8458]
[1755930407933,0.03347456,206.51,206.44,2.13]
[1755930408132,0.03347456,206.51,206.45,4.69636425]
[1755930408337,0.03347456,206.51,206.44,2.13]
[1755930408529,0.03347456,206.51,206.45,4.70173495]
[1755930408727,2.73347456,206.51,206.46,4.70173495]
[1755930408925,2.73347456,206.51,206.44,2.13]
[1755930409129,2.73347456,206.51,206.45,4.56023001]
[1755930409328,2.73347456,206.51,206.44,2.13]
[1755930409532,2.73347456,206.51,206.44,1.83]
[1755930410133,2.73347456,206.51,206.43,4.8462]
[1755930410134,2.73347456,206.51,206.43,4.5562]
[1755930411838,2.7,206.5,206.39,6.04155631]
[1755930412133,2.7,206.5,206.39,3.54155631]
[1755930412633,0.03287595,206.47,206.39,3.54155631]
[1755930413430,0.03287595,206.47,206.36,131.2077]
[1755930413431,2.7,206.46,206.36,126.36]
[1755930414034,4.8463,206.43,206.36,126.36]
[1755930414233,7.5463,206.43,206.36,126.36]
[1755930414831,0.03072051,206.42,206.36,126.36]
[1755930415337,0.03072051,206.42,206.34,4.8482]
[1755930416040,0.03072051,206.42,206.34,2.3482]
[1755930417734,0.03072051,206.42,206.35,4.58548477]
[1755930417934,0.03072051,206.42,206.36,4.58548477]
[1755930418138,2.73072051,206.42,206.37,4.58548477]
[1755930418341,2.73072051,206.42,206.38,4.58548477]
[1755930418534,2.73072051,206.42,206.39,4.58548477]
[1755930418737,2.73072051,206.42,206.4,4.58548477]
[1755930418941,2.73072051,206.42,206.41,4.58548477]
[1755930419745,2.73072051,206.42,206.41,2.08548477]
[1755930420542,2.73072051,206.42,206.34,2.3482]
[1755930421144,2.73072051,206.42,206.35,4.73125331]
[1755930421342,2.73072051,206.42,206.36,4.73125331]
[1755930421546,7.5474,206.39,206.27,6.04155631]
[1755930421745,7.5474,206.39,206.28,16.53648663]
[1755930421934,7.5474,206.39,206.29,4.73223361]
[1755930422136,7.5474,206.39,206.3,4.73223361]
[1755930422341,0.03380963,206.36,206.31,4.73223361]
[1755930422541,0.03380963,206.36,206.32,4.73223361]
[1755930422741,0.03380963,206.36,206.33,4.73223361]
[1755930422942,0.03380963,206.36,206.29,4.8495]
[1755930423246,0.03380963,206.36,206.3,4.71898623]
[1755930423444,0.03380963,206.36,206.31,4.71898623]
[1755930423644,0.03380963,206.36,206.32,4.71898623]
[1755930423845,0.03380963,206.36,206.31,4.849]
[1755930424045,0.03380963,206.36,206.32,4.71935413]
[1755930424245,0.03380963,206.36,206.31,4.849]
[1755930424842,0.03380963,206.36,206.29,4.8495]
[1755930425041,0.03380963,206.36,206.3,4.7200263]
[1755930425243,0.03380963,206.36,206.31,4.7200263]
[1755930425542,0.03380963,206.36,206.18,21.7603]
[1755930425543,2.59,206.33,206.18,21.7603]
[1755930425742,2.59,206.33,206.21,6.04155631]
[1755930425941,2.59,206.33,206.22,4.71248746]
[1755930426147,2.59,206.33,206.23,4.71248746]
[1755930426350,0.03439782,206.29,206.24,4.71248746]
[1755930426644,2.62439782,206.29,206.21,6.88495754]
[1755930426842,4.8501,206.27,206.22,4.71411418]
[1755930427046,4.8501,206.27,206.14,6.04155631]
[1755930427047,2.62439782,206.29,206.13,6.04155631]
[1755930427242,2.62439782,206.29,206.14,4.71558215]
[1755930427445,2.59,206.29,206.15,4.71558215]
[1755930427643,2.59,206.29,206.16,4.71558215]
[1755930427838,0.03459077,206.24,206.17,4.71558215]
[1755930428038,0.03459077,206.24,206.14,0.8438307]
[1755930428247,0.03459077,206.24,206.15,4.71436417]
[1755930428547,0.03459077,206.24,206.16,9.56696417]
[1755930428747,0.03459077,206.24,206.16,4.8526]
[1755930429849,0.03459077,206.24,206.14,0.8438307]
[1755930430051,0.03459077,206.24,206.15,4.71173089]
[1755930430349,0.03459077,206.24,206.14,0.8438307]
[1755930430548,4.88539077,206.24,206.15,4.71031607]
[1755930430744,0.03459077,206.24,206.11,126.18]
[1755930430950,2.59,206.2,206.04,6.04155631]
[1755930431149,2.59,206.2,206.05,4.71173672]
[1755930431347,2.59,206.2,206.06,4.71173672]
[1755930431547,0.03364845,206.14,206.08,30.31415631]
[1755930431747,0.03364845,206.14,206.09,9.21386836]
[1755930431941,2.59,206.24,206.1,9.21386836]
[1755930432147,2.59,206.24,206.11,9.21386836]
[1755930432348,0.03420535,206.14,206.12,4.50621819]
[1755930432550,0.03420535,206.14,206.12,4.8535]
[1755930432853,7.4408,206.24,206.12,4.8535]
[1755930433151,0.03141038,206.15,206.12,4.8535]
[1755930433344,7.4408,206.24,206.12,4.8535]
[1755930433747,0.0317034,206.16,206.14,4.853]
[1755930434155,2.59,206.2,206.12,0.84393302]
[1755930434457,0.03463421,206.17,206.12,0.84393302]
[1755930435054,0.03463421,206.17,206.13,4.8532]
[1755930435548,0.03463421,206.17,206.12,0.84393302]
[1755930436156,0.03463421,206.17,206.12,5.69743302]
[1755930438147,0.03463421,206.17,206.12,4.24743302]
[1755930438352,0.03463421,206.17,206.12,3.19743302]
[1755930441251,0.03463421,206.17,206.06,4.8548]
[1755930441453,0.03463421,206.17,206.06,2.3548]
[1755930441647,0.03463421,206.17,206.07,0.84413773]
[1755930442154,4.8526,206.16,206.07,0.84413773]
[1755930442352,2.59,206.16,206.03,95.54231262]
[1755930442654,2.59,206.16,206.07,6.04155631]
[1755930443249,0.03674495,206.14,206.07,6.04155631]
[1755930443658,0.03674495,206.14,206.08,4.8543]
[1755930444657,0.03674495,206.14,206.07,6.04155631]
[1755930444852,0.03674495,206.14,206.08,24.2727]
[1755930445361,0.03674495,206.14,206.12,4.8534]
[1755930449466,0.03674495,206.14,206.1,126.2]
[1755930450559,0.03674495,206.14,206.1,131.0538]
[1755930451064,2.62674495,206.14,206.1,126.2]
[1755930451267,0.03674495,206.14,206.1,123.7]
[1755930451860,0.03674495,206.14,206.1,128.554]
[1755930452062,0.03674495,206.14,206.1,134.59555631]
[1755930452764,0.03674495,206.14,206.11,4.8536]
[1755930453657,0.03674495,206.14,206.13,4.8533]
[1755930455269,0.03674495,206.14,206.13,9.37581923]
[1755930457667,2.63,206.21,206.17,4.8522]
[1755930457963,2.63,206.25,206.17,4.8522]
[1755930458362,2.63,206.25,206.18,4.53285344]
[1755930458566,2.63,206.25,206.17,4.8522]
[1755930458766,2.63,206.25,206.18,4.53261055]
[1755930458966,2.63,206.25,206.19,10.57416686]
[1755930459163,2.63,206.25,206.2,4.53261055]
[1755930459366,2.63,206.28,206.21,4.53261055]
[1755930459561,2.63,206.28,206.19,6.07593698]
[1755930459767,2.63,206.28,206.21,4.8514]
[1755930459965,2.63,206.28,206.19,6.04155631]
[1755930460166,2.63,206.28,206.21,0.03285772]
[1755930460370,2.63,206.28,206.22,4.53741614]
[1755930460572,2.63,206.28,206.21,0.03285772]
[1755930460874,2.63,206.28,206.22,4.53741614]
[1755930461075,2.63,206.28,206.21,0.03285772]
[1755930461372,2.63,206.28,206.22,4.53741614]
[1755930461567,2.63,206.28,206.22,4.851]
[1755930462465,69.18691563,206.32,206.23,4.54348542]
[1755930462672,2.63,206.27,206.22,4.851]
[1755930462873,2.63,206.27,206.23,4.54348542]
[1755930463069,2.63,206.26,206.22,4.851]
[1755930463272,2.63,206.26,206.23,4.54348542]
[1755930463473,2.63,206.26,206.22,4.8871741]
[1755930463772,2.63,206.26,206.23,4.54719451]
[1755930463968,2.63,206.26,206.22,4.8871741]
[1755930464164,2.63,206.26,206.23,4.54719451]
[1755930464366,2.63,206.3,206.24,4.55137156]
[1755930464676,2.63,206.31,206.25,4.55133089]
[1755930464875,2.63,206.31,206.22,4.8871741]
[1755930465076,2.63,206.31,206.19,30.30075631]
[1755930465077,2.63,206.31,206.23,14.11868764]
[1755930465272,2.63,206.31,206.24,4.55115191]
[1755930465475,2.63,206.31,206.25,4.55115191]
[1755930465667,2.63,206.31,206.24,0.03084184]
[1755930465872,2.63,206.31,206.25,4.55124577]
[1755930466073,2.63,206.3,206.26,4.8502]
[1755930466370,2.63,206.34,206.24,0.03084184]
[1755930466577,2.63,206.34,206.25,9.27610215]
[1755930466775,2.63,206.34,206.26,4.55512317]
[1755930466971,2.63,206.34,206.23,156.35655631]
[1755930466972,2.63,206.34,206.27,4.55512317]
[1755930467175,2.63,206.34,206.27,0.03440896]
[1755930467371,2.63,206.34,206.28,4.55737163]
[1755930467572,2.63,206.34,206.27,4.88420896]
[1755930467777,2.63,206.34,206.28,4.55737163]
[1755930467977,2.63,206.34,206.27,4.88420896]
[1755930468178,2.63,206.34,206.28,4.55737163]
[1755930468477,2.63,206.34,206.27,4.88420896]
[1755930468669,2.63,206.34,206.28,4.55983553]
[1755930468867,2.63,206.34,206.27,0.03440896]
[1755930469068,2.63,206.34,206.19,27.83566527]
[1755930469278,0.0331738,206.33,206.2,11.09944367]
[1755930469475,0.0331738,206.33,206.21,9.28614778]
[1755930469476,2.63,206.32,206.21,9.28614778]
[1755930469774,2.63,206.29,206.22,9.28614778]
[1755930469974,2.63,206.29,206.23,4.56013084]
[1755930470176,2.63,206.29,206.24,4.56013084]
[1755930470370,0.03598643,206.28,206.25,4.56013084]
[1755930470775,2.63,206.27,206.26,4.56738006]
[1755930471776,0.03598643,206.28,206.26,4.56738006]
[1755930471977,0.03598643,206.28,206.24,4.8507]
[1755930472176,0.03598643,206.28,206.25,4.56879021]
[1755930472375,0.03598643,206.28,206.24,4.8507]
[1755930472578,2.66598643,206.28,206.25,4.56828769]
[1755930472775,2.66598643,206.28,206.24,4.8507]
[1755930473078,2.66598643,206.28,206.25,4.56828448]
[1755930473278,2.66598643,206.28,206.24,4.8507]
[1755930473477,2.66598643,206.28,206.25,2.06773446]
[1755930473672,0.03598643,206.28,206.21,4.8512]
[1755930473879,2.63,206.27,206.22,4.73390115]
[1755930474077,2.63,206.27,206.13,24.2667]
[1755930474280,2.63,206.27,206.15,6.04155631]
[1755930474478,2.63,206.27,206.2,4.8516]
[1755930474876,0.03309784,206.23,206.2,4.8516]
[1755930478585,0.03309784,206.23,206.21,4.8513]
[1755930481276,0.03309784,206.23,206.14,6.04155631]
[1755930481482,0.03309784,206.23,206.15,4.73391813]
[1755930481781,0.03309784,206.23,206.16,4.73391813]
[1755930482077,0.03309784,206.23,206.17,4.73391813]
[1755930482284,0.03309784,206.23,206.13,6.04155631]
[1755930482582,0.03309784,206.23,206.16,4.8526]
[1755930482782,0.03309784,206.23,206.17,4.73471254]
[1755930482975,0.03309784,206.23,206.16,2.3526]
[1755930483172,0.03309784,206.23,206.17,4.73475055]
[1755930483379,0.03309784,206.23,206.17,4.8522]
[1755930484782,0.03309784,206.23,206.19,4.8519]
[1755930485481,0.03309784,206.23,206.2,4.82240641]
[1755930485681,0.03309784,206.23,206.21,4.82240641]
[1755930485892,0.03309784,206.23,206.22,4.82240641]
[1755930487985,0.03309784,206.23,206.2,4.8515]
[1755930488185,0.03309784,206.23,206.21,4.82340833]
[1755930488385,0.03309784,206.23,206.22,4.82340833]
[1755930489594,0.03309784,206.23,206.22,9.59642441]
[1755930491086,0.03309784,206.23,206.22,9.59646071]
[1755930493188,6.04155631,206.36,206.28,4.8498]
[1755930493189,2.59,206.35,206.28,4.8498]
[1755930493388,2.59,206.35,206.29,4.82340833]
[1755930493601,4.8481,206.36,206.3,4.82340833]
[1755930493791,2.59,206.33,206.28,4.8498]
[1755930493991,2.59,206.33,206.29,4.82392691]
[1755930494290,2.59,206.33,206.3,4.82392691]
[1755930494594,6.04155631,206.38,206.29,0.03245455]
[1755930494791,2.59,206.37,206.29,0.03245455]
[1755930494993,2.59,206.37,206.21,6.04155631]
[1755930495184,2.59,206.37,206.22,9.59643199]
[1755930495389,2.59,206.37,206.31,0.03363124]
[1755930495585,2.59,206.32,206.31,0.03363124]
[1755930497296,2.59,206.32,206.26,4.85]
[1755930497596,2.59,206.32,206.27,4.82607864]
[1755930497792,2.59,206.32,206.28,4.82607864]
[1755930497993,2.59,206.32,206.29,4.82607864]
[1755930498188,2.59,206.32,206.3,4.82607864]
[1755930498498,2.59,206.32,206.26,3.47]
[1755930498693,7.47003578,206.33,206.27,4.82647918]
[1755930498894,2.59,206.32,206.28,9.67627918]
[1755930499193,0.03143578,206.33,206.29,4.82647918]
[1755930499403,0.03143578,206.33,206.18,2.78]
[1755930499404,2.59,206.32,206.18,2.78]
[1755930499698,4.8505,206.26,206.19,4.77693966]
[1755930499897,2.59,206.25,206.16,6.04155631]
[1755930500098,2.62101141,206.25,206.18,4.77759099]
[1755930500392,2.62101141,206.25,206.19,4.74877093]
[1755930500599,2.62101141,206.25,206.16,10.89415631]
[1755930500796,2.62101141,206.25,206.18,4.74881256]
[1755930500994,4.8508,206.24,206.19,4.74881256]
[1755930501195,2.62101141,206.25,206.12,125.76]
[1755930501398,2.62101141,206.25,206.13,6.56893992]
[1755930501700,2.59,206.24,206.14,4.74982441]
[1755930501895,2.59,206.24,206.12,128.4335]
[1755930502100,0.03698042,206.21,206.13,4.75062794]
[1755930502298,0.03698042,206.21,206.14,4.75062794]
[1755930502492,2.62698042,206.21,206.12,128.4335]
[1755930502691,2.62698042,206.21,206.13,4.75012831]
[1755930502900,7.47858042,206.21,206.14,4.75012831]
[1755930503095,7.47858042,206.21,206.12,128.4335]
[1755930503297,7.47858042,206.21,206.13,4.75034884]
[1755930503496,7.47858042,206.21,206.12,128.4335]
[1755930503701,7.47858042,206.21,206.13,4.7487282]
[1755930503902,7.47858042,206.21,206.14,4.7487282]
[1755930504200,7.47858042,206.21,206.12,128.4335]
[1755930504398,7.47858042,206.21,206.13,4.74714945]
[1755930504597,7.47858042,206.21,206.12,128.4335]
[1755930504800,7.47858042,206.21,206.13,4.74714945]
[1755930505001,7.47858042,206.21,206.14,4.74714945]
[1755930505202,7.47858042,206.21,206.12,125.9335]
[1755930505398,7.47858042,206.21,206.13,4.74577705]
[1755930505598,7.47858042,206.21,206.12,125.9335]
[1755930505799,7.47858042,206.21,206.13,4.74577705]
[1755930505995,4.852,206.19,206.12,121.08]
[1755930506201,4.852,206.19,206.12,0.32]
[1755930506396,4.852,206.19,206.13,4.74550896]
[1755930506605,2.59,206.16,206.08,332.37155631]
[1755930506899,2.59,206.16,206.04,0.31]
[1755930507094,2.59,206.16,206.05,4.74500799]
[1755930507300,0.03579323,206.12,206.06,4.74500799]
[1755930507495,0.03579323,206.12,206.01,4.69585788]
[1755930507804,0.03579323,206.12,206.02,6.55759612]
[1755930507997,0.03579323,206.12,206.03,4.74147242]
[1755930508200,0.03579323,206.12,206.04,4.74147242]
[1755930508502,0.03579323,206.12,206.05,4.74147242]
[1755930508704,0.03579323,206.12,206.01,6.04155631]
[1755930508899,0.03579323,206.12,206.02,6.55286181]
[1755930509199,0.03579323,206.12,206.03,4.73804158]
[1755930509399,0.03579323,206.12,206.04,4.73804158]
[1755930509599,0.03579323,206.12,206.01,6.04155631]
[1755930509803,0.03579323,206.12,206.02,9.59084332]
[1755930510000,0.03579323,206.12,206.03,4.73494332]
[1755930510306,0.03579323,206.12,206.04,4.73494332]
[1755930510497,0.03579323,206.12,206.01,6.04155631]
[1755930510700,0.03579323,206.12,206.02,4.73240838]
[1755930510901,0.03579323,206.12,206.03,4.73240838]
[1755930511105,0.03579323,206.12,206.04,4.7324765]
[1755930511303,4.8538,206.11,206.05,4.71088671]
[1755930511608,2.59,206.11,205.98,2.3567]
[1755930511798,2.59,206.11,205.99,9.44298704]
[1755930512001,4.8543,206.09,206.0,4.71180159]
[1755930512203,4.8543,206.09,205.96,6.88607302]
[1755930512204,4.8543,206.09,206.01,4.71180159]
[1755930512406,0.0325832,206.07,206.02,4.71180159]
[1755930512606,2.6225832,206.07,205.96,6.88607302]
[1755930512908,2.6225832,206.07,205.97,9.43675792]
[1755930513109,2.6225832,206.07,205.98,9.43675792]
[1755930513312,7.4773832,206.07,205.99,4.70868463]
[1755930513511,7.4773832,206.07,206.0,2.20868463]
[1755930513702,7.4773832,206.07,205.97,4.857]
[1755930514802,7.4773832,206.07,205.97,2.437]
[1755930515403,2.6225832,206.07,205.97,2.437]
[1755930518108,7.4775832,206.07,205.97,2.437]
[1755930518314,7.4775832,206.07,205.96,0.84451671]
[1755930519208,7.4775832,206.07,205.97,4.8571]
[1755930520213,2.6225832,206.07,205.99,4.8566]
[1755930521117,0.0325832,206.07,205.97,24.2855]
[1755930521605,0.0325832,206.07,205.98,4.65740993]
[1755930521806,0.0325832,206.07,205.97,24.2855]
[1755930522013,0.0325832,206.07,205.98,4.65747394]
[1755930522309,0.0325832,206.07,206.03,4.8557]
[1755930523315,0.0325832,206.07,206.0,4.8562]
[1755930523711,2.56,206.06,205.97,6.04155631]
[1755930523914,0.0325832,206.07,205.97,30.32715631]
[1755930525211,0.0325832,206.07,206.0,4.8564]
[1755930525518,0.0325832,206.07,206.01,4.63941871]
[1755930525717,0.0325832,206.07,206.0,4.8564]
[1755930525918,0.0325832,206.07,206.01,4.63941872]
[1755930526116,0.0325832,206.07,206.0,4.8564]
[1755930526117,0.0325832,206.07,206.0,2.3564]
[1755930526318,0.0325832,206.07,206.01,4.63941872]
[1755930526512,0.0325832,206.07,206.0,2.3564]
[1755930526819,0.0325832,206.07,206.01,4.63917699]
[1755930527020,0.0325832,206.07,206.0,2.3564]
[1755930527215,0.0325832,206.07,206.01,4.63879126]
[1755930527521,2.5925832,206.07,206.02,4.63799935]
[1755930527819,2.5925832,206.07,206.0,2.3564]
[1755930528021,2.5925832,206.07,206.01,4.63799935]
[1755930528220,2.5925832,206.07,206.02,4.63799935]
[1755930528422,2.5925832,206.07,206.0,2.3564]
[1755930528622,2.5925832,206.07,206.01,4.63763547]
[1755930528819,2.5925832,206.07,206.0,2.3564]
[1755930529019,2.5925832,206.07,206.01,4.63777461]
[1755930529222,2.5925832,206.07,206.0,2.3564]
[1755930529420,2.5925832,206.07,206.01,4.63777461]
[1755930529621,2.5925832,206.07,206.0,2.3564]
[1755930529925,2.5925832,206.07,206.01,4.63744507]
[1755930530224,2.5925832,206.07,206.0,2.3564]
[1755930530421,2.5925832,206.07,206.01,4.63732259]
[1755930530724,2.5925832,206.07,206.0,2.3564]
[1755930530921,2.5925832,206.07,206.01,4.63732259]
[1755930531124,2.5925832,206.07,206.0,2.3564]
[1755930531424,2.5925832,206.07,206.01,4.63732259]
[1755930531724,0.0325832,206.07,206.02,4.63749297]
[1755930531918,2.56,206.06,206.0,2.3564]
[1755930532118,2.56,206.06,206.01,4.63749298]
[1755930532429,2.56,206.06,206.0,2.3564]
[1755930532725,2.56,206.06,206.01,4.63792835]
[1755930532919,2.56,206.06,206.0,2.3564]
[1755930533120,2.56,206.06,206.01,4.63792835]
[1755930533427,2.56,206.06,206.02,4.63792835]
[1755930533625,2.56,206.06,206.0,2.3564]
[1755930534019,2.56,206.06,206.01,4.63848356]
[1755930534217,2.56,206.06,206.0,2.3564]
[1755930534525,2.56,206.06,206.01,4.63913613]
[1755930534719,2.56,206.06,206.0,2.3564]
[1755930535323,2.56,206.05,205.96,126.46451671]
[1755930535518,2.56,206.05,205.97,4.64074608]
[1755930535717,2.56,206.05,205.98,4.64074608]
[1755930535927,2.56,206.05,205.96,126.46451671]
[1755930536125,0.03488344,206.03,205.97,2.14090866]
[1755930536325,0.03488344,206.03,205.96,126.46451671]
[1755930537531,0.03488344,206.03,205.97,4.8571]
[1755930539629,0.03488344,206.03,205.96,126.46451671]
[1755930540124,0.03488344,206.03,205.96,132.50607302]
[1755930540320,0.03488344,206.03,205.97,4.66535729]
[1755930540522,0.03488344,206.03,205.98,4.66535729]
[1755930540724,0.03488344,206.03,205.99,4.8566]
[1755930541932,0.03488344,206.03,205.96,137.36317302]
[1755930542130,2.56,206.01,205.96,0.84451671]
[1755930542336,2.56,206.01,205.93,123.78451671]
[1755930542530,2.56,206.01,205.94,4.67501389]
[1755930542730,2.56,206.01,205.95,4.67501389]
[1755930542930,2.56,206.01,205.95,4.8576]
[1755930543336,0.03488344,206.03,205.96,4.68004597]
[1755930543635,0.03488344,206.03,205.97,4.68004597]
[1755930543834,0.03488344,206.03,206.01,4.856]
[1755930544032,2.59,206.15,206.02,4.67909784]
[1755930544227,2.59,206.15,206.03,4.67909784]
[1755930544428,2.59,206.15,206.04,4.67909784]
[1755930544624,2.59,206.15,206.05,4.67909784]
[1755930544824,2.59,206.15,206.0,6.04155631]
[1755930545024,2.59,206.15,206.01,4.68439787]
[1755930545337,2.59,206.15,206.05,0.03068739]
[1755930545533,2.59,206.06,206.05,0.03068739]
[1755930545933,2.59,206.06,205.99,4.35718739]
[1755930546139,2.59,206.06,206.0,4.69916746]
[1755930546334,2.59,206.06,206.01,2.64916746]
[1755930546535,0.03083268,206.08,206.01,4.8562]
[1755930548044,0.03083268,206.08,206.02,4.61531898]
[1755930548343,2.59,206.07,206.03,4.61531898]
[1755930548536,2.59,206.07,206.04,4.61531898]
[1755930548738,2.59,206.07,206.01,4.8562]
[1755930548739,2.59,206.07,206.05,4.61531898]
[1755930548937,2.59,206.07,206.06,4.61531898]
[1755930551147,2.59,206.07,206.06,4.62355479]
[1755930551743,2.59,206.07,206.06,4.16355479]
[1755930551939,2.59,206.07,206.0,4.8564]
[1755930552150,2.59,206.07,206.01,1.82491708]
[1755930552344,2.59,206.07,206.0,4.8564]
[1755930552543,2.59,206.07,206.0,4.6417169]
[1755930558446,2.59,206.07,206.01,4.68007714]
[1755930558646,2.59,206.07,206.02,4.68007714]
[1755930558848,2.59,206.07,206.0,4.6417169]
[1755930559045,2.59,206.07,206.01,4.67988323]
[1755930559351,2.59,206.06,206.02,4.67988323]
[1755930559547,2.59,206.06,206.0,4.6417169]
[1755930559842,2.59,206.06,206.01,4.68001347]
[1755930560050,0.03083268,206.08,206.02,4.68001347]
[1755930560238,2.59,206.05,206.0,4.6417169]
[1755930560441,2.59,206.05,206.01,4.68001347]
[1755930560638,2.59,206.05,206.02,3.56001347]
[1755930560845,2.59,206.05,206.0,4.6417169]
[1755930561237,2.59,206.05,206.0,3.2617169]
[1755930561437,2.62083268,206.08,206.0,3.2617169]
[1755930563550,2.62083268,206.08,206.01,4.8559]
[1755930563751,2.62083268,206.08,206.02,4.6255668]
[1755930564051,2.59,206.07,206.03,4.6255668]
[1755930564252,2.59,206.06,206.04,4.6255668]
[1755930564550,2.59,206.06,206.05,4.6255668]
[1755930564749,2.62083268,206.08,206.05,4.6255668]
[1755930564952,0.03083268,206.08,206.06,4.6255668]
[1755930565154,0.03083268,206.08,206.07,4.6255668]
[1755930566955,2.62083268,206.08,206.07,4.6255668]
[1755930567150,2.62083268,206.08,205.97,131.44155631]
[1755930567352,2.62083268,206.08,205.98,10.56976251]
[1755930567653,7.47553268,206.08,205.99,11.26199815]
[1755930567848,7.47553268,206.08,206.0,4.62509966]
[1755930568050,7.47553268,206.08,206.01,4.62509966]
[1755930568247,7.47553268,206.08,206.02,4.62509966]
[1755930568450,4.8549,206.07,206.03,4.62509966]
[1755930568647,2.59,206.07,205.97,127.757]
[1755930568850,2.59,206.07,205.98,6.40624003]
[1755930569056,2.59,206.07,205.99,4.62569613]
[1755930569258,2.59,206.07,206.0,4.62569613]
[1755930569758,2.59,206.04,206.01,4.62560011]
[1755930569955,4.8551,206.06,206.02,4.62560011]
[1755930570257,2.59,206.03,205.97,127.757]
[1755930570452,2.59,206.03,205.98,4.62589043]
[1755930570650,0.03326017,206.02,205.99,2.12589043]
[1755930570850,0.03326017,206.02,205.97,122.9]
[1755930571250,2.59,206.01,205.89,326.36]
[1755930571456,2.59,206.01,205.9,5.92365156]
[1755930571759,2.59,206.01,205.91,5.92217989]
[1755930571958,0.03261026,205.98,205.92,1.78080373]
[1755930572155,0.03261026,205.98,205.93,1.78080373]
[1755930572359,0.03261026,205.98,205.91,4.8585]
[1755930572754,0.03261026,205.98,205.92,6.46554378]
[1755930572959,0.03261026,205.98,205.93,4.68559231]
[1755930573159,0.03261026,205.98,205.94,4.68559231]
[1755930573362,0.03261026,205.98,205.95,4.68559231]
[1755930573562,0.03261026,205.98,205.96,4.68559231]
[1755930573752,0.03261026,205.98,205.97,4.68559231]
[1755930573958,0.03261026,205.98,205.91,6.04155631]
[1755930574154,0.03261026,205.98,205.93,4.8578]
[1755930574464,0.03261026,205.98,205.94,4.68422845]
[1755930574662,0.03261026,205.98,205.95,4.68422845]
[1755930574962,0.03261026,205.98,205.96,4.68422845]
[1755930575259,0.03261026,205.98,205.97,4.68422845]
[1755930577563,0.03261026,205.98,205.92,2.3582]
[1755930577763,0.03261026,205.98,205.93,4.69462616]
[1755930577961,0.03261026,205.98,205.94,4.69462616]
[1755930578161,0.03261026,205.98,205.95,4.69462616]
[1755930578364,0.03261026,205.98,205.92,2.3582]
[1755930578662,0.03261026,205.98,205.93,4.69383361]
[1755930578963,0.03261026,205.98,205.94,4.69383361]
[1755930579156,0.03261026,205.98,205.95,4.69370322]
[1755930579353,0.03261026,205.98,205.92,2.3582]
[1755930579562,0.03261026,205.98,205.93,4.69309128]
[1755930579757,0.03261026,205.98,205.94,4.69309128]
[1755930579953,0.03261026,205.98,205.95,4.69309128]
[1755930580153,2.54,205.97,205.88,0.84483449]
[1755930580460,2.54,205.97,205.89,6.47175828]
[1755930580764,0.03261026,205.98,205.92,6.04155631]
[1755930581070,0.03261026,205.98,205.93,4.69235883]
[1755930581364,0.03261026,205.98,205.94,4.69235883]
[1755930581565,0.03261026,205.98,205.92,6.04155631]
[1755930581765,0.03261026,205.98,205.93,4.69163253]
[1755930581965,0.03261026,205.98,205.94,4.69163253]
[1755930582168,0.03261026,205.98,205.92,6.04155631]
[1755930582366,0.03261026,205.98,205.93,4.69087359]
[1755930582660,0.03261026,205.98,205.94,4.72483273]
[1755930582866,0.03261026,205.98,205.95,4.72483273]
[1755930583063,0.03261026,205.98,205.96,9.4156681]
[1755930583260,0.03261026,205.98,205.97,9.4156681]
[1755930583758,0.03261026,205.98,205.97,14.2727681]
[1755930583963,0.03261026,205.98,205.97,9.4156681]
[1755930584569,0.03261026,205.98,205.97,4.53483273]
[1755930585069,0.03261026,205.98,205.97,2.22483273]
[1755930587867,0.03261026,205.98,205.93,2.358]
[1755930588067,0.03261026,205.98,205.94,4.68978327]
[1755930588369,0.03261026,205.98,205.95,4.68978327]
[1755930588568,0.03261026,205.98,205.93,2.358]
[1755930588760,0.03261026,205.98,205.94,4.68956991]